bitfinex-derivatives/quotes_SOLF0:USTF0_20251002
["timestamp","ask_amount","ask_price","bid_price","bid_amount"]
[1759389331003,7.21565807,224.89,224.83,9.6178258]
[1759389331202,7.35,224.87,224.83,9.6178258]
[1759389332896,7.35,224.87,224.84,8.7]
[1759389333702,11.10317412,224.88,224.84,8.7]
[1759389333905,7.35,224.88,224.84,12.95]
[1759389334704,11.10249198,224.88,224.84,12.95]
[1759389334903,7.35,224.88,224.84,12.95]
[1759389335504,11.10193165,224.88,224.84,12.95]
[1759389335705,7.35,224.9,224.84,12.95]
[1759389335905,7.35,224.9,224.84,8.7]
[1759389335906,11.08772471,224.89,224.84,8.7]
[1759389336106,3.45694089,224.88,224.84,8.7]
[1759389336304,7.35,224.88,224.84,8.7]
[1759389336503,3.73772471,224.89,224.84,8.7]
[1759389336906,7.35,224.88,224.84,8.7]
[1759389337407,7.35,224.87,224.84,8.7]
[1759389337607,3.73772471,224.87,224.84,8.7]
[1759389337802,7.35,224.88,224.84,8.7]
[1759389338002,7.35,224.87,224.84,8.7]
[1759389338203,3.73772471,224.87,224.84,8.7]
[1759389338408,7.35,224.88,224.84,8.7]
[1759389338604,7.35,224.87,224.85,7.08]
[1759389338804,7.35,224.86,224.85,7.08]
[1759389341411,3.7378911,224.89,224.85,7.08]
[1759389341710,7.35,224.88,224.85,7.08]
[1759389341910,3.7378911,224.89,224.85,7.08]
[1759389342111,7.35,224.88,224.85,7.08]
[1759389342306,3.7378911,224.89,224.85,7.08]
[1759389342512,7.35,224.88,224.85,7.08]
[1759389343012,3.7378911,224.89,224.85,7.08]
[1759389343313,7.35,224.88,224.85,7.08]
[1759389344615,3.7378911,224.89,224.85,7.08]
[1759389344815,7.35,224.88,224.85,7.08]
[1759389345618,3.7378911,224.89,224.85,7.08]
[1759389345914,7.35,224.88,224.85,7.08]
[1759389346515,1.3671258,224.9,224.85,7.08]
[1759389346815,3.7378911,224.89,224.85,7.08]
[1759389347218,7.35,224.88,224.85,7.08]
[1759389347414,3.7378911,224.89,224.85,7.08]
[1759389347615,7.35,224.88,224.85,7.08]
[1759389347809,3.7378911,224.89,224.85,7.08]
[1759389348217,7.35,224.88,224.85,7.08]
[1759389349117,3.7378911,224.89,224.85,7.08]
[1759389349514,7.35,224.88,224.85,7.08]
[1759389350418,3.7378911,224.89,224.85,7.08]
[1759389350712,7.35,224.88,224.85,7.08]
[1759389351016,3.7378911,224.89,224.85,7.08]
[1759389351715,7.35,224.88,224.85,7.08]
[1759389351919,3.7378911,224.89,224.85,7.08]
[1759389352109,7.35,224.88,224.85,7.08]
[1759389352314,3.7378911,224.89,224.85,7.08]
[1759389353513,7.35,224.87,224.85,7.08]
[1759389353713,11.0878911,224.87,224.85,7.08]
[1759389354010,7.35,224.87,224.85,7.08]
[1759389354409,3.73867843,224.88,224.86,4.25]
[1759389354617,11.37867843,224.89,224.86,4.25]
[1759389355010,3.73867843,224.88,224.86,4.25]
[1759389355415,7.64,224.88,224.86,4.25]
[1759389356112,7.64,224.88,224.85,7.08]
[1759389356113,7.64,224.88,224.85,11.33]
[1759389356719,3.73867843,224.89,224.85,7.08]
[1759389356919,7.64,224.88,224.85,7.08]
[1759389358022,3.73867843,224.89,224.85,7.08]
[1759389358215,7.64,224.88,224.85,7.08]
[1759389358524,7.64,224.87,224.85,7.08]
[1759389358722,7.64,224.86,224.85,7.08]
[1759389359414,3.9995,224.91,224.85,7.08]
[1759389359613,7.64,224.89,224.86,4.25]
[1759389359817,11.38125285,224.89,224.86,4.25]
[1759389360020,3.74125285,224.88,224.86,4.25]
[1759389360213,7.64,224.89,224.86,4.25]
[1759389360416,3.74125285,224.88,224.86,4.25]
[1759389360812,3.74125285,224.92,224.86,4.25]
[1759389361012,3.74125285,224.92,224.85,7.08]
[1759389361013,7.64,224.99,224.9,3.9995]
[1759389361220,3.74056086,224.98,224.91,4.25]
[1759389361420,3.74056086,224.97,224.91,4.25]
[1759389361723,7.64,224.94,224.86,4.25]
[1759389362123,1.3671258,224.93,224.86,4.25]
[1759389362720,7.64,224.92,224.85,7.08]
[1759389364519,11.38056086,224.92,224.85,7.08]
[1759389365725,11.38056086,224.92,224.83,9.6177258]
[1759389366128,11.38056086,224.92,224.83,5.6171258]
[1759389366325,11.38056086,224.92,224.83,4.25]
[1759389367822,7.64,224.9,224.83,4.25]
[1759389368225,11.38056086,224.9,224.83,4.25]
[1759389368426,7.64,224.88,224.85,7.07]
[1759389368928,7.64,224.91,224.85,7.07]
[1759389369128,7.64,224.89,224.85,7.07]
[1759389369427,3.60203489,224.89,224.85,7.07]
[1759389369626,3.60203489,224.9,224.85,7.07]
[1759389369822,3.60203489,224.89,224.85,7.07]
[1759389370028,7.64,224.89,224.85,7.07]
[1759389370229,7.64,224.88,224.85,7.07]
[1759389371219,11.24203489,224.88,224.85,7.07]
[1759389371422,3.60203489,224.87,224.85,7.07]
[1759389371627,7.64,224.87,224.85,7.07]
[1759389371829,3.60203489,224.89,224.85,7.07]
[1759389372028,3.60203489,224.88,224.85,7.07]
[1759389372330,3.60203489,224.87,224.85,7.07]
[1759389372521,11.24203489,224.86,224.85,7.07]
[1759389373630,119.74203489,224.86,224.85,7.07]
[1759389381138,11.24203489,224.86,224.85,7.07]
[1759389381338,119.74203489,224.86,224.85,7.07]
[1759389385240,119.74203489,224.86,224.85,11.32]
[1759389385241,112.10203489,224.86,224.85,11.32]
[1759389385441,7.39,224.89,224.85,7.07]
[1759389385741,108.5,224.88,224.85,11.32]
[1759389385940,3.6001132,224.87,224.85,4.25]
[1759389387440,3.6001132,224.87,224.81,4.25]
[1759389388443,3.6001132,224.87,224.82,7.07]
[1759389389043,3.6001132,224.87,224.83,4.25]
[1759389389239,3.6001132,224.87,224.84,4.25]
[1759389389445,108.5,224.86,224.82,7.07]
[1759389389744,108.5,224.86,224.83,8.7]
[1759389389939,108.48,224.86,224.84,4.25]
[1759389390335,7.39,224.89,224.84,4.25]
[1759389390537,108.48,224.88,224.83,8.7]
[1759389390739,3.59998352,224.87,224.83,8.7]
[1759389391148,7.39,224.86,224.83,8.7]
[1759389391351,3.59998352,224.87,224.83,8.7]
[1759389391547,7.39,224.86,224.83,8.7]
[1759389393140,7.39,224.86,224.83,12.95]
[1759389394151,3.59998352,224.87,224.83,12.95]
[1759389394347,7.39,224.86,224.83,8.7]
[1759389394650,7.39,224.86,224.83,12.95]
[1759389395345,3.59998352,224.87,224.83,8.7]
[1759389395543,108.48,224.88,224.84,4.25]
[1759389395740,3.62782777,224.87,224.83,8.7]
[1759389395941,47.92,224.87,224.84,4.25]
[1759389396147,47.92,224.87,224.85,4.25]
[1759389397850,55.31,224.87,224.85,4.25]
[1759389398451,7.39,224.87,224.85,4.25]
[1759389400055,7.39,224.9,224.83,8.7]
[1759389400261,11.01784041,224.9,224.84,4.25]
[1759389400451,55.54784041,224.89,224.85,4.25]
[1759389400752,3.62786203,224.88,224.83,10.83466633]
[1759389400955,3.62786203,224.88,224.86,4.25]
[1759389404748,3.62786203,224.88,224.83,10.83466633]
[1759389404749,3.62786203,224.88,224.83,15.08466633]
[1759389404955,7.39,224.87,224.83,10.83466633]
[1759389405155,7.39,224.87,224.84,4.25]
[1759389408760,7.39,224.87,224.85,7.86]
[1759389409860,11.02165073,224.87,224.85,7.86]
[1759389410063,7.39,224.87,224.85,7.86]
[1759389410657,7.39,224.88,224.85,12.11]
[1759389412463,11.02194228,224.88,224.85,12.11]
[1759389412765,3.63194228,224.87,224.85,12.11]
[1759389413760,7.39,224.88,224.85,12.11]
[1759389414467,11.02194228,224.88,224.85,12.11]
[1759389414666,3.63194228,224.87,224.85,12.11]
[1759389415556,7.39,224.88,224.85,12.11]
[1759389416464,7.39,224.88,224.86,2.13466633]
[1759389416771,2.13466633,225.04,224.86,2.57466633]
[1759389416958,80.19486386,225.05,224.91,2.13466633]
[1759389416959,3.63071565,224.99,224.91,2.13466633]
[1759389417157,3.63071565,224.99,224.91,6.13376633]
[1759389418366,3.63071565,224.99,224.92,2.13466633]
[1759389418764,7.79,224.98,224.92,2.13466633]
[1759389418964,7.79,224.98,224.93,3.9989]
[1759389420871,7.79,224.98,224.94,7.07]
[1759389424370,3.62146456,224.99,224.94,7.07]
[1759389424673,3.9981,224.98,224.94,7.07]
[1759389425769,3.9984,224.96,224.94,7.07]
[1759389425973,108.38,224.95,224.94,7.07]
[1759389426176,112.00146456,224.95,224.94,7.07]
[1759389426769,112.44146456,224.95,224.94,7.07]
[1759389427373,112.00146456,224.95,224.94,7.07]
[1759389428773,3.62146456,224.95,224.94,7.07]
[1759389428976,108.38,224.95,224.94,7.07]
[1759389429171,112.00146456,224.95,224.94,7.07]
[1759389430880,108.38,224.95,224.94,7.07]
[1759389433284,5.36383446,224.97,224.94,7.07]
[1759389433479,108.36,224.96,224.94,7.07]
[1759389434476,3.63795055,224.95,224.94,7.07]
[1759389434673,9.00218501,224.95,224.94,7.07]
[1759389435686,7.63655055,224.95,224.94,7.07]
[1759389436983,3.9992,224.92,224.87,1.36563446]
[1759389437185,108.36,224.91,224.85,9.22563446]
[1759389439087,108.36,224.91,224.85,7.86]
[1759389439282,108.36,224.91,224.85,9.22563446]
[1759389443389,3.64114619,224.9,224.85,9.22563446]
[1759389443784,3.64114619,224.9,224.85,7.86]
[1759389445189,15.73,224.86,224.85,7.86]
[1759389445487,124.09,224.86,224.85,7.86]
[1759389449787,127.72914728,224.86,224.85,7.86]
[1759389450387,124.09,224.86,224.85,7.86]
[1759389451091,127.72857202,224.86,224.85,7.86]
[1759389453390,124.09,224.86,224.85,7.86]
[1759389454994,124.09,224.86,224.65,95.47508046]
[1759389454995,15.73,224.81,224.67,11.64]
[1759389455291,15.73,224.79,224.77,11.64]
[1759389455591,108.36,224.78,224.77,11.64]
[1759389456682,108.36,224.78,224.76,13.00563446]
[1759389458587,4.001,224.82,224.76,13.00563446]
[1759389458792,15.73,224.8,224.76,13.00563446]
[1759389458997,124.09,224.79,224.76,13.00563446]
[1759389459990,108.36,224.79,224.76,13.00563446]
[1759389460190,15.73,224.78,224.76,13.00563446]
[1759389460484,124.09,224.77,224.7,0.83]
[1759389460688,125.45563446,224.77,224.7,0.83]
[1759389461693,15.73,224.73,224.7,0.83]
[1759389461891,15.73,224.71,224.7,0.83]
[1759389471204,15.73,224.8,224.71,11.64]
[1759389471401,15.73,224.83,224.76,1.36563446]
[1759389471606,108.4,224.82,224.76,1.36563446]
[1759389471996,15.73,224.8,224.76,13.00563446]
[1759389472205,108.4,224.79,224.78,1.36563446]
[1759389472806,124.13,224.79,224.78,1.36563446]
[1759389474301,108.4,224.8,224.78,1.36563446]
[1759389474508,108.38,224.8,224.79,8.76563446]
[1759389475197,108.38,224.8,224.79,1.36563446]
[1759389476809,108.38,224.8,224.79,8.76563446]
[1759389477105,108.38,224.83,224.8,7.4]
[1759389477306,108.38,224.83,224.82,8.76563446]
[1759389477600,108.38,224.86,224.82,1.36563446]
[1759389477807,7.37,224.85,224.82,1.36563446]
[1759389479408,7.37,224.85,224.82,8.76563446]
[1759389481307,7.37,224.85,224.84,1.36563446]
[1759389482211,7.37,224.85,224.82,1.36563446]
[1759389482407,7.37,224.85,224.79,9.59563446]
[1759389482610,10.39381849,224.85,224.79,9.59563446]
[1759389483106,7.37,224.84,224.79,0.83]
[1759389483305,7.37,224.82,224.79,0.83]
[1759389483506,7.37,224.81,224.79,0.83]
[1759389483701,115.73,224.8,224.79,0.83]
[1759389486113,118.75626247,224.8,224.79,0.83]
[1759389487616,7.37,224.77,224.7,8.76563446]
[1759389487817,7.37,224.75,224.7,8.76563446]
[1759389488217,112.362,224.76,224.7,8.76563446]
[1759389488416,7.37,224.75,224.7,8.76563446]
[1759389488917,112.362,224.76,224.7,8.76563446]
[1759389489116,7.37,224.75,224.7,8.76563446]
[1759389489518,112.362,224.76,224.7,8.76563446]
[1759389490018,7.37,224.75,224.69,1.36563446]
[1759389490217,7.37,224.75,224.66,7.4]
[1759389491828,16.82,224.75,224.69,7.4]
[1759389492018,24.19,224.75,224.69,7.4]
[1759389492723,4.0015,224.79,224.63,323.8]
[1759389492724,7.37,224.79,224.71,2.13760082]
[1759389492923,6.66021388,224.81,224.75,7.4]
[1759389493124,3.0316831,224.81,224.75,7.4]
[1759389498126,3.0316831,224.81,224.78,7.4]
[1759389498330,3.0316831,224.85,224.78,7.4]
[1759389498927,10.4016831,224.86,224.78,7.4]
[1759389499330,7.37,224.86,224.78,7.4]
[1759389499923,10.40700563,224.86,224.78,7.4]
[1759389503233,7.37,224.86,224.78,7.4]
[1759389503629,10.40479744,224.86,224.78,7.4]
[1759389503830,7.37,224.86,224.78,7.4]
[1759389504437,10.40436622,224.86,224.78,7.4]
[1759389505330,7.37,224.86,224.78,7.4]
[1759389506733,10.40468447,224.86,224.78,7.4]
[1759389507032,7.37,224.86,224.8,9.78760082]
[1759389512344,7.37,224.86,224.8,7.65]
[1759389515037,3.63750583,224.87,224.69,7.65]
[1759389515236,3.63750583,224.87,224.65,13.17746598]
[1759389515237,7.63,224.86,224.72,2.13760082]
[1759389515441,11.26750583,224.86,224.73,7.65]
[1759389516538,4.0009,224.82,224.73,7.65]
[1759389516732,7.63,224.83,224.73,7.65]
[1759389517433,14.70017401,224.83,224.73,7.65]
[1759389517638,7.63,224.83,224.74,7.65]
[1759389517841,7.63,224.83,224.74,2.13760082]
[1759389518040,11.06266779,224.83,224.75,7.65]
[1759389518238,7.63,224.83,224.75,7.65]
[1759389518641,11.06302833,224.83,224.76,7.65]
[1759389518843,7.63,224.83,224.76,7.65]
[1759389519243,11.06332435,224.83,224.76,7.65]
[1759389519445,4.0005,224.85,224.77,7.65]
[1759389519744,3.43351649,224.86,224.78,7.65]
[1759389519940,7.63,224.87,224.79,7.65]
[1759389519941,11.06351649,224.87,224.79,7.65]
[1759389520643,11.06351649,224.87,224.78,7.65]
[1759389520946,7.63,224.9,224.81,7.65]
[1759389521338,7.63,224.9,224.82,7.65]
[1759389522146,11.0618439,224.9,224.82,7.65]
[1759389522345,3.9996,224.89,224.82,7.65]
[1759389525947,7.63,224.9,224.82,7.65]
[1759389528444,18.70434466,224.9,224.82,7.65]
[1759389528652,7.63,224.88,224.82,7.65]
[1759389529152,7.63,224.88,224.79,7.65]
[1759389529753,11.05947507,224.88,224.79,7.65]
[1759389530054,7.63,224.88,224.79,7.65]
[1759389530457,14.70575195,224.88,224.79,7.65]
[1759389530753,7.63,224.88,224.79,7.65]
[1759389531254,14.70599844,224.88,224.79,7.65]
[1759389531451,7.63,224.88,224.79,7.65]
[1759389531853,14.70670344,224.88,224.79,7.65]
[1759389532051,7.63,224.88,224.79,7.65]
[1759389532454,14.70670344,224.88,224.79,7.65]
[1759389532654,7.63,224.88,224.79,7.65]
[1759389533051,14.70790527,224.88,224.79,7.65]
[1759389533249,7.63,224.88,224.79,7.65]
[1759389533653,18.70973358,224.88,224.79,7.65]
[1759389533958,11.6298,224.88,224.79,7.65]
[1759389534253,7.19,224.86,224.79,7.65]
[1759389540364,10.62170486,224.86,224.79,7.65]
[1759389541264,14.27019486,224.86,224.79,7.65]
[1759389541564,7.08019486,224.85,224.79,7.65]
[1759389541868,7.19,224.84,224.75,7.55]
[1759389542164,7.19,224.82,224.75,7.55]
[1759389542360,14.27019486,224.82,224.75,7.55]
[1759389542560,7.08019486,224.81,224.75,7.55]
[1759389542761,7.19,224.82,224.75,7.55]
[1759389543065,3.64849,224.81,224.75,7.55]
[1759389543263,3.64849,224.8,224.75,7.55]
[1759389543462,7.19,224.8,224.75,7.55]
[1759389543664,3.64849,224.8,224.75,7.55]
[1759389544060,7.19,224.79,224.75,7.55]
[1759389544264,7.19,224.8,224.75,7.55]
[1759389544668,7.08019486,224.81,224.75,7.55]
[1759389544963,7.19,224.8,224.75,7.55]
[1759389545265,7.08019486,224.81,224.75,7.55]
[1759389545871,3.64849,224.81,224.75,7.55]
[1759389546466,7.19,224.8,224.75,7.55]
[1759389546667,3.43170486,224.8,224.75,7.55]
[1759389546869,7.19,224.79,224.75,7.55]
[1759389548671,7.19,224.79,224.73,7.55]
[1759389549071,3.43170486,224.81,224.74,7.55]
[1759389549269,3.43170486,224.83,224.74,7.55]
[1759389549474,3.43170486,224.82,224.74,7.55]
[1759389549674,3.43170486,224.83,224.74,7.55]
[1759389549876,3.43170486,224.82,224.74,7.55]
[1759389550076,3.43170486,224.83,224.74,7.55]
[1759389550278,3.43170486,224.82,224.78,1.36679052]
[1759389550578,3.53736041,224.83,224.79,7.55]
[1759389550772,3.53736041,224.82,224.78,1.36679052]
[1759389550974,3.53736041,224.83,224.78,1.36679052]
[1759389551178,3.53736041,224.83,224.79,7.55]
[1759389552273,3.53736041,224.83,224.78,1.36679052]
[1759389552468,3.53736041,224.83,224.79,7.55]
[1759389552675,3.53736041,224.83,224.78,1.36679052]
[1759389553079,3.53736041,224.83,224.79,7.55]
[1759389553275,7.53806041,224.83,224.77,1.36679052]
[1759389553476,3.53736041,224.82,224.77,8.91679052]
[1759389553675,7.25424332,224.82,224.77,8.91679052]
[1759389553977,7.19,224.81,224.77,1.36679052]
[1759389554280,7.19,224.8,224.77,8.91679052]
[1759389558269,10.72736041,224.8,224.72,7.55]
[1759389558675,7.19,224.8,224.72,7.55]
[1759389558875,10.72736041,224.8,224.72,7.55]
[1759389559075,7.19,224.8,224.72,7.55]
[1759389559378,10.72736041,224.8,224.72,7.55]
[1759389559579,7.19,224.8,224.72,11.5525]
[1759389559779,10.72736041,224.8,224.72,11.5525]
[1759389560176,10.72736041,224.8,224.73,1.36679052]
[1759389561377,7.19,224.8,224.73,1.36679052]
[1759389563783,7.19,224.8,224.72,4.0025]
[1759389563988,14.4430698,224.8,224.72,4.0025]
[1759389564582,7.78,224.78,224.71,1.36679052]
[1759389565785,11.31736041,224.78,224.71,1.36679052]
[1759389565986,7.78,224.78,224.71,1.36679052]
[1759389566186,11.31069744,224.78,224.71,1.36679052]
[1759389566388,7.78,224.78,224.71,1.36679052]
[1759389566589,11.48950914,224.78,224.71,1.36679052]
[1759389566890,3.53076875,224.77,224.71,1.36679052]
[1759389567087,7.78,224.78,224.71,1.36679052]
[1759389567391,15.02027789,224.78,224.71,1.36679052]
[1759389567594,3.53076875,224.77,224.71,1.36679052]
[1759389567792,11.31076875,224.78,224.71,1.36679052]
[1759389572485,108.32,224.84,224.68,1.36679052]
[1759389572486,7.78,224.76,224.68,1.36679052]
[1759389572687,15.01888674,224.76,224.68,1.36679052]
[1759389572993,7.78,224.74,224.68,1.36679052]
[1759389574586,7.78,224.72,224.63,327.8041]
[1759389574788,7.78,224.72,224.64,7.47]
[1759389575186,11.30683024,224.72,224.64,7.47]
[1759389575385,7.78,224.72,224.64,7.47]
[1759389576595,7.78,224.7,224.64,7.47]
[1759389582805,11.7831,224.7,224.64,7.47]
[1759389583306,11.7831,224.7,224.61,7.47]
[1759389585598,4.0033,224.68,224.61,7.47]
[1759389585804,7.78,224.67,224.58,7.47]
[1759389588714,11.7837,224.67,224.58,7.47]
[1759389591514,4.0038,224.66,224.58,7.47]
[1759389591712,7.78,224.65,224.58,7.47]
[1759389592419,9.14679052,224.65,224.55,1.36679052]
[1759389592719,7.78,224.63,224.55,1.36679052]
[1759389594711,1.36679052,224.65,224.54,11.4757]
[1759389594712,7.28,224.61,224.54,11.4757]
[1759389596516,7.28,224.61,224.54,7.47]
[1759389597017,7.28,224.61,224.53,1.36679052]
[1759389598112,7.28,224.59,224.53,1.36679052]
[1759389599120,7.28,224.59,224.52,13.9513548]
[1759389599620,7.28,224.59,224.53,4.006]
[1759389600317,7.28,224.59,224.52,13.9513548]
[1759389600318,11.2849,224.59,224.52,13.9513548]
[1759389601820,4.0053,224.57,224.52,13.9513548]
[1759389602117,4.0053,224.57,224.52,5.26456428]
[1759389602316,7.28,224.56,224.52,5.26456428]
[1759389602920,4.0053,224.57,224.52,5.26456428]
[1759389603424,7.28,224.56,224.52,5.26456428]
[1759389603717,7.28,224.58,224.52,5.26456428]
[1759389605219,7.28,224.58,224.52,12.58456428]
[1759389605520,7.28,224.58,224.52,13.9513548]
[1759389606223,7.28,224.58,224.52,7.32]
[1759389609128,7.28,224.58,224.51,1.36679052]
[1759389609325,4.0049,224.59,224.49,11.3267]
[1759389609521,7.28,224.58,224.51,1.36679052]
[1759389611035,7.28,224.58,224.51,8.68679052]
[1759389612331,7.28,224.58,224.51,7.32]
[1759389612925,4.0053,224.57,224.51,7.32]
[1759389613126,7.28,224.56,224.51,7.32]
[1759389613328,7.28,224.55,224.49,7.32]
[1759389614133,7.28,224.51,224.44,7.32]
[1759389621536,7.28,224.54,224.46,7.32]
[1759389624728,7.28,224.54,224.47,4.007]
[1759389624934,7.28,224.54,224.48,7.72]
[1759389628737,7.28,224.54,224.46,4.0072]
[1759389630042,7.28,224.54,224.47,7.72]
[1759389630836,10.80179077,224.54,224.47,7.72]
[1759389631343,7.7,224.52,224.43,7.72]
[1759389633644,7.7,224.52,224.44,4.0075]
[1759389635341,7.7,224.51,224.36,2.14079697]
[1759389635545,14.93684257,224.51,224.37,7.72]
[1759389635745,7.7,224.49,224.37,7.72]
[1759389635946,11.22728689,224.49,224.37,7.72]
[1759389636247,7.7,224.49,224.42,7.72]
[1759389638850,7.7,224.49,224.42,11.7278]
[1759389639450,7.7,224.53,224.43,7.72]
[1759389640151,14.92535378,224.53,224.47,4.007]
[1759389640350,7.7,224.53,224.48,7.72]
[1759389640550,11.7058,224.54,224.43,7.72]
[1759389640852,7.7,224.52,224.43,7.72]
[1759389641048,14.92636477,224.52,224.43,7.72]
[1759389641250,7.7,224.5,224.43,7.72]
[1759389641452,14.92636477,224.5,224.43,7.72]
[1759389641653,7.7,224.5,224.43,7.72]
[1759389642151,14.92586922,224.5,224.43,7.72]
[1759389642352,7.7,224.5,224.43,7.72]
[1759389642746,14.92643468,224.5,224.43,7.72]
[1759389642942,7.7,224.5,224.43,7.72]
[1759389643347,14.92643468,224.5,224.43,7.72]
[1759389643547,7.7,224.5,224.43,7.72]
[1759389643746,14.92715705,224.5,224.43,7.72]
[1759389644053,7.7,224.5,224.43,7.72]
[1759389644251,14.92719366,224.5,224.43,7.72]
[1759389644556,7.7,224.5,224.43,7.72]
[1759389644744,11.18733505,224.5,224.43,7.72]
[1759389644947,7.7,224.5,224.43,7.72]
[1759389645355,11.18712767,224.5,224.43,7.72]
[1759389645553,7.7,224.5,224.43,7.72]
[1759389645744,7.7,224.5,224.43,11.7277]
[1759389646549,14.92594827,224.5,224.43,11.7277]
[1759389646754,7.7,224.5,224.43,11.7277]
[1759389647953,14.92913208,224.5,224.43,11.7277]
[1759389648146,3.48886218,224.49,224.43,11.7277]
[1759389648351,7.7,224.5,224.43,11.7277]
[1759389648952,14.93045169,224.5,224.43,11.7277]
[1759389649152,7.7,224.5,224.43,11.7277]
[1759389649851,14.9312716,224.5,224.43,11.7277]
[1759389650052,7.7,224.5,224.43,11.7277]
[1759389650452,14.93085406,224.5,224.43,11.7277]
[1759389650652,7.7,224.5,224.43,11.7277]
[1759389650848,7.7,224.5,224.43,7.72]
[1759389651049,18.9380985,224.5,224.43,7.72]
[1759389651354,7.2315985,224.49,224.43,7.72]
[1759389652352,3.74156567,224.49,224.43,7.72]
[1759389652656,11.7065,224.5,224.43,7.72]
[1759389653357,7.23214862,224.49,224.43,7.72]
[1759389656562,7.7,224.5,224.43,7.72]
[1759389657260,14.93369823,224.5,224.43,7.72]
[1759389657458,7.7,224.5,224.43,7.72]
[1759389658060,14.93524262,224.5,224.43,7.72]
[1759389658254,7.23522094,224.49,224.43,7.72]
[1759389658663,7.7,224.5,224.43,7.72]
[1759389659264,14.93515996,224.5,224.43,7.72]
[1759389659470,7.7,224.5,224.44,7.8]
[1759389660066,7.23549641,224.5,224.45,4.0073]
[1759389660263,7.31,224.5,224.45,4.0073]
[1759389660467,7.31,224.5,224.46,7.8]
[1759389660768,10.80190401,224.5,224.45,4.0073]
[1759389660967,7.31,224.5,224.43,7.8]
[1759389661167,10.80190401,224.5,224.43,7.8]
[1759389661467,7.31,224.5,224.43,7.8]
[1759389661659,10.80190401,224.5,224.43,7.8]
[1759389661866,7.31,224.5,224.43,11.8076]
[1759389662066,10.80190401,224.5,224.43,11.8076]
[1759389662366,7.31,224.5,224.43,11.8076]
[1759389662562,10.80190401,224.5,224.43,11.8076]
[1759389662763,7.31,224.5,224.43,11.8076]
[1759389662963,14.54549641,224.5,224.43,11.8076]
[1759389663262,7.23888226,224.49,224.43,11.8076]
[1759389663666,3.49359627,224.49,224.43,11.8076]
[1759389663868,7.31,224.5,224.43,11.8076]
[1759389664071,10.80359627,224.5,224.43,11.8076]
[1759389664369,7.31,224.5,224.43,11.8076]
[1759389664570,10.80359627,224.5,224.43,11.8076]
[1759389664770,14.54888226,224.5,224.43,11.8076]
[1759389664967,3.49359627,224.49,224.43,11.8076]
[1759389665270,10.80359627,224.49,224.43,7.8]
[1759389665967,7.31,224.47,224.43,7.8]
[1759389666166,4.0067,224.5,224.43,7.8]
[1759389666167,7.31,224.45,224.43,7.8]
[1759389666770,3.49411504,224.44,224.43,7.8]
[1759389666974,3.49411504,224.44,224.41,7.8]
[1759389667174,3.49411504,224.43,224.41,7.8]
[1759389667472,3.49411504,224.42,224.41,7.8]
[1759389668070,10.80411504,224.42,224.39,11.8084]